[Event "Titled Tuesday Blitz May 25 2021"]
[White "Weetik, Vjacheslav"]
[Black "Taboas Rodriguez, Daniel"]
[WhiteFideId "4153472"]
[BlackFideId "2208466"]
[WhiteElo "2469"]
[BlackElo "2429"]
[Result "1/2-1/2"]
[Round "11"]
[TimeControl "180+1"]
[Date "2021.05.25"]
[WhiteClock "0:00:07"]
[BlackClock "0:00:20"]

1. e4 {[%clk 0:03:00]}  e6 {[%clk 0:02:59]} 2. d4 {[%clk 0:03:00]}  d5 {[%clk 0:03:00]} 3. Nc3 {[%clk 0:03:01]}  Nc6 {[%clk 0:03:00]} 4. Nf3 {[%clk 0:03:00]}  Nf6 {[%clk 0:03:00]} 5. Bg5 {[%clk 0:02:59]}  Be7 {[%clk 0:03:01]} 6. e5 {[%clk 0:02:57]}  Ne4 {[%clk 0:02:59]} 7. Bxe7 {[%clk 0:02:55]}  Qxe7 {[%clk 0:03:00]} 8. Bd3 {[%clk 0:02:51]}  Qb4 {[%clk 0:02:51]} 9. O-O {[%clk 0:02:48]}  Nxc3 {[%clk 0:02:49]} 10. bxc3 {[%clk 0:02:49]}  Qxc3 {[%clk 0:02:50]} 11. Rb1 {[%clk 0:02:36]}  Qa3 {[%clk 0:02:48]} 12. Ng5 {[%clk 0:02:19]}  Qe7 {[%clk 0:02:37]} 13. Qg4 {[%clk 0:01:40]}  h6 {[%clk 0:02:34]} 14. Nf3 {[%clk 0:01:29]}  O-O {[%clk 0:02:33]} 15. Rfe1 {[%clk 0:01:24]}  f5 {[%clk 0:02:20]} 16. exf6 {[%clk 0:01:15]}  Rxf6 {[%clk 0:02:21]} 17. Qg3 {[%clk 0:01:05]}  Qd6 {[%clk 0:02:15]} 18. Ne5 {[%clk 0:00:32]}  Nxd4 {[%clk 0:02:12]} 19. Ng4 {[%clk 0:00:32]}  Qxg3 {[%clk 0:02:02]} 20. Nxf6+ {[%clk 0:00:32]}  gxf6 {[%clk 0:02:03]} 21. hxg3 {[%clk 0:00:33]}  c5 {[%clk 0:01:57]} 22. c4 {[%clk 0:00:26]}  Kf7 {[%clk 0:01:56]} 23. f3 {[%clk 0:00:17]}  Nc6 {[%clk 0:01:55]} 24. cxd5 {[%clk 0:00:13]}  exd5 {[%clk 0:01:56]} 25. Kf2 {[%clk 0:00:14]}  b6 {[%clk 0:01:55]} 26. Rh1 {[%clk 0:00:14]}  Kg7 {[%clk 0:01:54]} 27. Rh5 {[%clk 0:00:14]}  Be6 {[%clk 0:01:53]} 28. Rbh1 {[%clk 0:00:14]}  Rh8 {[%clk 0:01:52]} 29. a3 {[%clk 0:00:12]}  c4 {[%clk 0:01:50]} 30. Bc2 {[%clk 0:00:09]}  b5 {[%clk 0:01:50]} 31. g4 {[%clk 0:00:08]}  a5 {[%clk 0:01:49]} 32. Rb1 {[%clk 0:00:06]}  b4 {[%clk 0:01:50]} 33. Ba4 {[%clk 0:00:06]}  Ne5 {[%clk 0:01:36]} 34. axb4 {[%clk 0:00:06]}  axb4 {[%clk 0:01:36]} 35. Kg3 {[%clk 0:00:06]}  b3 {[%clk 0:01:35]} 36. Bxb3 {[%clk 0:00:06]}  cxb3 {[%clk 0:01:35]} 37. Rxb3 {[%clk 0:00:07]}  d4 {[%clk 0:01:33]} 38. Rb7+ {[%clk 0:00:07]}  Bf7 {[%clk 0:01:33]} 39. Rh1 {[%clk 0:00:07]}  Rd8 {[%clk 0:01:33]} 40. Rd1 {[%clk 0:00:07]}  d3 {[%clk 0:01:33]} 41. Rb4 {[%clk 0:00:03]}  Nc4 {[%clk 0:01:25]} 42. Kf2 {[%clk 0:00:02]}  d2 {[%clk 0:01:23]} 43. Ke2 {[%clk 0:00:03]}  Kg6 {[%clk 0:01:23]} 44. Rb5 {[%clk 0:00:02]}  Be8 {[%clk 0:01:17]} 45. Rc5 {[%clk 0:00:02]}  Rd4 {[%clk 0:01:16]} 46. Rxc4 {[%clk 0:00:01]}  Rxc4 {[%clk 0:01:16]} 47. Rxd2 {[%clk 0:00:02]}  Bb5 {[%clk 0:01:11]} 48. Kf2 {[%clk 0:00:02]}  Ba4 {[%clk 0:01:09]} 49. Rd6 {[%clk 0:00:02]}  Rc2+ {[%clk 0:01:09]} 50. Kg3 {[%clk 0:00:03]}  Bb5 {[%clk 0:01:09]} 51. Rd1 {[%clk 0:00:03]}  Be2 {[%clk 0:01:09]} 52. Re1 {[%clk 0:00:03]}  Kf7 {[%clk 0:01:05]} 53. Ra1 {[%clk 0:00:03]}  Bb5 {[%clk 0:01:04]} 54. Rh1 {[%clk 0:00:04]}  Kg7 {[%clk 0:01:04]} 55. Rb1 {[%clk 0:00:04]}  Be8 {[%clk 0:01:02]} 56. Rb7+ {[%clk 0:00:04]}  Bf7 {[%clk 0:01:02]} 57. Rb1 {[%clk 0:00:05]}  Kf8 {[%clk 0:00:58]} 58. Ra1 {[%clk 0:00:05]}  Bc4 {[%clk 0:00:55]} 59. Rh1 {[%clk 0:00:05]}  Kg7 {[%clk 0:00:55]} 60. Ra1 {[%clk 0:00:06]}  Ra2 {[%clk 0:00:53]} 61. Rc1 {[%clk 0:00:06]}  Be2 {[%clk 0:00:50]} 62. Rc7+ {[%clk 0:00:05]}  Kg6 {[%clk 0:00:51]} 63. Rc1 {[%clk 0:00:06]}  Rd2 {[%clk 0:00:46]} 64. Re1 {[%clk 0:00:06]}  Kg5 {[%clk 0:00:45]} 65. Rc1 {[%clk 0:00:04]}  Rd1 {[%clk 0:00:46]} 66. Rc5+ {[%clk 0:00:04]}  Kg6 {[%clk 0:00:45]} 67. Kf2 {[%clk 0:00:05]}  Ba6 {[%clk 0:00:43]} 68. Rc2 {[%clk 0:00:05]}  Rf1+ {[%clk 0:00:43]} 69. Kg3 {[%clk 0:00:05]}  Bd3 {[%clk 0:00:31]} 70. Rd2 {[%clk 0:00:06]}  Bc4 {[%clk 0:00:27]} 71. Rc2 {[%clk 0:00:06]}  Bf7 {[%clk 0:00:27]} 72. Rd2 {[%clk 0:00:06]}  Rh1 {[%clk 0:00:26]} 73. Rb2 {[%clk 0:00:06]}  h5 {[%clk 0:00:27]} 74. gxh5+ {[%clk 0:00:06]}  Rxh5 {[%clk 0:00:28]} 75. Rd2 {[%clk 0:00:07]}  Rg5+ {[%clk 0:00:29]} 76. Kf2 {[%clk 0:00:07]}  Ra5 {[%clk 0:00:29]} 77. g4 {[%clk 0:00:07]}  Bd5 {[%clk 0:00:28]} 78. Rd3 {[%clk 0:00:07]}  Kf7 {[%clk 0:00:26]} 79. Kg3 {[%clk 0:00:07]}  Ke6 {[%clk 0:00:26]} 80. Rc3 {[%clk 0:00:07]}  Rb5 {[%clk 0:00:27]} 81. Re3+ {[%clk 0:00:05]}  Kd6 {[%clk 0:00:26]} 82. Kf4 {[%clk 0:00:05]}  Be6 {[%clk 0:00:25]} 83. Rd3+ {[%clk 0:00:05]}  Rd5 {[%clk 0:00:24]} 84. Rxd5+ {[%clk 0:00:04]}  Kxd5 {[%clk 0:00:24]} 85. g5 {[%clk 0:00:04]}  f5 {[%clk 0:00:24]} 86. g6 {[%clk 0:00:05]}  Kd6 {[%clk 0:00:19]} 87. g7 {[%clk 0:00:05]}  Ke7 {[%clk 0:00:19]} 88. g8=Q {[%clk 0:00:06]}  Bxg8 {[%clk 0:00:20]} 89. Kxf5 {[%clk 0:00:06]}  Bd5 {[%clk 0:00:20]} 90. Ke5 {[%clk 0:00:07]}  Bxf3 {[%clk 0:00:20]} 1/2-1/2


[Site "https://www.chess.com"]

[Event "Titled Tuesday Blitz May 25 2021"]
[White "elcandado"]
[Black "kleopl"]
[WhiteElo "2627"]
[BlackElo "2477"]
[Result "1-0"]
[Round "11"]
[TimeControl "180+1"]
[Date "2021.05.25"]
[WhiteClock "0:00:08"]
[BlackClock "0:00:08"]

1. d4 {[%clk 0:03:00]}  f5 {[%clk 0:02:58]} 2. Bf4 {[%clk 0:03:01]}  g6 {[%clk 0:02:56]} 3. e3 {[%clk 0:03:01]}  Bg7 {[%clk 0:02:56]} 4. h4 {[%clk 0:03:01]}  Nf6 {[%clk 0:02:54]} 5. h5 {[%clk 0:03:01]}  Nxh5 {[%clk 0:02:54]} 6. Rxh5 {[%clk 0:03:01]}  gxh5 {[%clk 0:02:55]} 7. Qxh5+ {[%clk 0:03:00]}  Kf8 {[%clk 0:02:55]} 8. Qxf5+ {[%clk 0:03:01]}  Kg8 {[%clk 0:02:53]} 9. Nc3 {[%clk 0:02:54]}  e6 {[%clk 0:02:52]} 10. Qh5 {[%clk 0:02:47]}  a6 {[%clk 0:02:46]} 11. Nf3 {[%clk 0:02:46]}  d6 {[%clk 0:02:36]} 12. O-O-O {[%clk 0:02:43]}  Nc6 {[%clk 0:02:35]} 13. Ng5 {[%clk 0:02:37]}  Qf6 {[%clk 0:02:31]} 14. Bd3 {[%clk 0:02:33]}  h6 {[%clk 0:02:29]} 15. Nf3 {[%clk 0:02:20]}  Bd7 {[%clk 0:02:25]} 16. Ne4 {[%clk 0:01:50]}  Qf7 {[%clk 0:02:22]} 17. Qh2 {[%clk 0:01:48]}  e5 {[%clk 0:02:13]} 18. dxe5 {[%clk 0:01:45]}  Qxa2 {[%clk 0:02:13]} 19. Nf6+ {[%clk 0:01:39]}  Bxf6 {[%clk 0:02:08]} 20. exf6 {[%clk 0:01:40]}  Qf7 {[%clk 0:01:58]} 21. Bc4 {[%clk 0:00:36]}  Qxc4 {[%clk 0:01:35]} 22. Qg3+ {[%clk 0:00:36]}  Kf7 {[%clk 0:01:35]} 23. Qg7+ {[%clk 0:00:36]}  Ke6 {[%clk 0:01:36]} 24. Nd4+ {[%clk 0:00:36]}  Nxd4 {[%clk 0:01:34]} 25. Rxd4 {[%clk 0:00:29]}  Qf1+ {[%clk 0:01:05]} 26. Rd1 {[%clk 0:00:28]}  Qb5 {[%clk 0:01:05]} 27. Qe7+ {[%clk 0:00:24]}  Kf5 {[%clk 0:01:05]} 28. g4+ {[%clk 0:00:24]}  Kxg4 {[%clk 0:01:04]} 29. Qe4 {[%clk 0:00:20]}  Bc6 {[%clk 0:00:10]} 30. Rg1+ {[%clk 0:00:19]}  Kh4 {[%clk 0:00:10]} 31. Bg5+ {[%clk 0:00:16]}  Kh5 {[%clk 0:00:09]} 32. Qg4+ {[%clk 0:00:14]}  Kg6 {[%clk 0:00:08]} 33. Bf4+ {[%clk 0:00:09]}  Kxf6 {[%clk 0:00:08]} 34. Qg7+ {[%clk 0:00:09]}  Ke6 {[%clk 0:00:08]} 35. Rg6+ {[%clk 0:00:09]}  Kd5 {[%clk 0:00:08]} 36. Qd4# {[%clk 0:00:08]} 1-0


[Site "https://www.chess.com"]